Cogmind - Beta 14 @@@ ROGUE MODE // 2024.08.31 @ 12:19:29 Player: Schmee Result: Destroyed by S-10 Pest with Light Assault Rifle Performance ------------- Evolutions (0) 0 Regions Visited (4) 800 Robots Destroyed (38) 190 Value Destroyed (811) 811 Prototype IDs (0) 0 Alien Tech Used (0) 0 Bonus (0) 0 TOTAL SCORE: 1801 Bonus ------- None Cogmind --------- Core Integrity 0/250 Matter 290/300 Energy 160/160 System Corruption 0% Temperature Cool (64) Movement Treading (160) Location -9/Mines Parts ------- > --- POWER (1) -------- Light Nuclear Core > --- PROPULSION (2) --- Light Treads Light Treads > --- UTILITY (2) ------ Large Storage Unit Seismic Detector > --- WEAPON (2) ------- Particle Gun Battle Cannon > --- INVENTORY (15) --- Light Nuclear Core Light Treads Improved Heat Sink High-capacity Storage Unit High-capacity Matter Pod (200) Structural Scanner Machine Analyzer ECM Suite Propulsion Shielding Propulsion Shielding Improved Utility Shielding Pulse Rifle Assault Rifle Light Assault Rifle Mining Claw Peak State ------------ > --- POWER ------------ Light Nuclear Core > --- PROPULSION ------- Light Treads Light Treads > --- UTILITY ---------- Large Storage Unit Propulsion Shielding > --- WEAPON ----------- Particle Gun Battle Cannon > --- INVENTORY -------- Light Nuclear Core Light Treads Improved Heat Sink High-capacity Storage Unit High-capacity Matter Pod Structural Scanner Machine Analyzer Seismic Detector ECM Suite Propulsion Shielding Improved Utility Shielding Pulse Rifle Assault Rifle Light Assault Rifle Mining Claw [Rating: 13] Favorites ----------- Power Light Ion Engine Engine Light Ion Engine Power Core Light Nuclear Core Propulsion Light Treads Treads Light Treads Leg Aluminum Leg Utility Large Storage Unit Device Improved Heat Sink Storage Large Storage Unit Protection Propulsion Shielding Weapon Assault Rifle Energy Gun Particle Gun Ballistic Gun Assault Rifle Ballistic Cannon Battle Cannon Build | -11 -10 -10 -10 -9 ------- Run | Yrd Mat Min Exi Min Slots Evolved . | . . . . . Power . | . . . . . Propulsion . | . . . . . Utility . | . . . . . Weapon . | . . . . . Parts Attached 24 | 2 14 6 . 2 Power 6 | . 3 3 . . Engine 3 | . 2 1 . . Core 3 | . 1 2 . . Reactor . | . . . . . Propulsion 4 | . 4 . . . Treads 4 | . 4 . . . Leg . | . . . . . Wheel . | . . . . . Hover . | . . . . . Flight . | . . . . . Utility 7 | 2 4 . . 1 Device 4 | 2 1 . . 1 Storage 1 | . 1 . . . Processor . | . . . . . Hackware . | . . . . . Protection 2 | . 2 . . . Artifact . | . . . . . Weapon 7 | . 3 3 . 1 Energy Gun 2 | . 1 1 . . Energy Cannon . | . . . . . Ballistic Gun 4 | . 2 2 . . Ballistic Cannon 1 | . . . . 1 Launcher . | . . . . . Special Weapon . | . . . . . Impact Weapon . | . . . . . Slashing Weapon . | . . . . . Piercing Weapon . | . . . . . Special Melee Weapon . | . . . . . Unidentified Prototypes . | . . . . . Parts Lost 9 | . 6 3 . . Power 3 | . 2 1 . . Propulsion 1 | . 1 . . . Utility 1 | . 1 . . . Weapon 4 | . 2 2 . . Highest Loss Streak 3 | . 3 3 . . To Critical Strikes . | . . . . . Average Slot Usage (%) 98 | . 98 98 100 100 Engine 7 | . 12 4 . . Core 5 | . . 8 14 14 Treads 26 | . 25 28 28 28 Leg 1 | . 1 . . . Device 7 | . 12 . . 7 Storage 14 | . 14 14 14 14 Protection 6 | . 1 14 14 6 Energy Gun 12 | . 12 12 14 14 Ballistic Gun 14 | . 15 15 14 6 Peak Build Rating 13 | 7 11 12 12 13 Average Rating 10 | 6 9 10 12 12 On Entrance 9 | 6 7 9 12 12 Naked Turns . | . . . . . Heaviest Build 32 | 13 29 31 31 32 Greatest Support 40 | 20 40 40 40 40 Greatest Overweight (x) . | . . . . . Average Overweight (x) . | . . . . . Largest Inventory Capacity 15 | 8 15 15 15 15 Average Capacity 12 | 8 9 15 15 15 Most Carried 15 | 7 15 15 15 15 Average Carried 10 | 6 7 14 14 14 Final Capacity 15 | 8 15 15 15 15 Final Carried 15 | 7 15 15 14 15 Class Distribution -------------------- 100% | Mutant Dominant Class ---------------- Mutant | -10/Materials Mutant | -10/Mines Mutant | -10/Exiles Mutant | -9/Mines Resources | -11 -10 -10 -10 -9 ----------- Run | Yrd Mat Min Exi Min Matter Collected 1000 | 240 531 209 . 20 Remotely 57 | 57 . . . . Salvage Created 1175 | 136 675 364 . . Parts 68 | 10 45 12 . 1 Haulers Intercepted 2 | . 2 . . . Recyclers Shooed 6 | . 3 3 . . Parts Field Recycled . | . . . . . Retrieved Matter . | . . . . . Parts Self-Destructed . | . . . . . Prevented . | . . . . . Kills | -11 -10 -10 -10 -9 ------- Run | Yrd Mat Min Exi Min Combat Hostiles Destroyed 25 | . 16 9 . . Guns 25 | . 16 9 . . Classes Destroyed 8 | 2 5 1 . . Worker 2 | . . 1 . 1 Tunneler 2 | 2 . . . . Hauler 2 | . 2 . . . Recycler 3 | 1 1 1 . . Operator 2 | . 2 . . . Watcher 2 | . 2 . . . Swarmer 9 | . 6 3 . . Grunt 16 | . 10 6 . . Best Kill Streak 4 | 2 4 3 . 1 Combat Bots Only 4 | . 4 2 . . Max Kills in Single Turn 1 | 1 1 1 . 1 Gunslinging . | . . . . . Exploded . | . . . . . Melee . | . . . . . Uniques/NPCs Destroyed . | . . . . . Combat | -11 -10 -10 -10 -9 -------- Run | Yrd Mat Min Exi Min Hostile Shots Fired 179 | . 102 49 . 28 Missed 33 | . 16 8 . 9 Damage Taken 1578 | . 928 504 . 146 Core 257 | . 108 94 . 55 Absorbed by Shields . | . . . . . Redirected to Shielding 46 | . . 46 . . Core Remaining (%) 100 | 100 . . . . Volleys Fired 128 | 5 82 39 . 2 Largest 2 | 2 2 2 . 2 Hottest 104 | 40 85 85 . 104 Shots Fired 248 | 10 157 77 . 4 Gun 246 | 10 157 77 . 2 Cannon 2 | . . . . 2 Launcher . | . . . . . Special . | . . . . . Kinetic 156 | 10 95 49 . 2 Thermal 92 | . 62 28 . 2 Explosive . | . . . . . Electromagnetic . | . . . . . Robot Hit Streak 18 | 5 7 18 . . Robot Miss Streak 5 | 1 5 4 . 4 Penetration Max . | . . . . . Secondary Targets 4 | . 3 1 . . Max Gunslinging Chain 1 | . 1 1 . . Shots Hit Robots 148 | 6 88 54 . . Core Hits 65 | 4 41 20 . . Critical Kills . | . . . . . Critical Parts Destroyed . | . . . . . Critical Strikes 3 | . 3 . . . Burn 3 | . 3 . . . Melee Attacks . | . . . . . Impact . | . . . . . Slashing . | . . . . . Piercing . | . . . . . Sneak Attacks . | . . . . . Combat Hostiles . | . . . . . Follow-up Attacks . | . . . . . Damage Inflicted 2100 | 77 1274 746 . 3 Guns 2073 | 76 1268 729 . . Cannons . | . . . . . Explosions . | . . . . . Melee . | . . . . . Ramming 27 | 1 6 17 . 3 Kinetic 1210 | 76 740 394 . . Thermal 863 | . 528 335 . . Explosive . | . . . . . Electromagnetic . | . . . . . Impact . | . . . . . Slashing . | . . . . . Piercing . | . . . . . Highest Corruption . | . . . . . Average Corruption . | . . . . . Corruption Purged . | . . . . . Corruption Blocked . | . . . . . Overload Shots . | . . . . . Overflow Damage . | . . . . . Projectiles . | . . . . . Explosions . | . . . . . Melee . | . . . . . Knockbacks . | . . . . . Impact . | . . . . . Kinetic . | . . . . . Secondary . | . . . . . Self-Inflicted Damage . | . . . . . Shots . | . . . . . Rammed 6 | . 3 3 . . Targets Rammed 8 | 1 3 3 . 1 Kicked 1 | 1 . . . . Crushed 1 | . . . . 1 Highest Temperature 294 | 6 227 294 . 64 Average Temperature 88 | 6 56 107 . 40 Received Heat Transfer 657 | . 429 228 . . Effects 1 | . . 1 . . Energy Bleed 1 | . . 1 . . Siege Activations . | . . . . . Robots Corrupted . | . . . . . Combat Hostiles . | . . . . . Parts Fried . | . . . . . Impact Corruptions . | . . . . . Robots Melted . | . . . . . Combat Hostiles . | . . . . . Parts Melted 3 | . 2 1 . . Heat Transferred 2331 | . 1517 814 . . Parts Sabotaged . | . . . . . Parts Stolen . | . . . . . Parts Stripped . | . . . . . Power Chain Reactions . | . . . . . Alert | -11 -10 -10 -10 -9 ------- Run | Yrd Mat Min Exi Min Peak Influence 369 | 15 369 245 . 66 Initial 9 | . 9 . . . Average 124 | 9 155 103 . 11 Maximum Alert Level 1 | . 1 1 . . Low Security (%) 82 | 100 75 90 . 100 Level 1 17 | . 24 9 . . Level 2 . | . . . . . Level 3 . | . . . . . Level 4 . | . . . . . Level 5 . | . . . . . High Security . | . . . . . Max Security . | . . . . . Squads Dispatched 5 | . 4 1 . . Investigation 2 | . 1 1 . . Extermination . | . . . . . Reinforcement 3 | . 3 . . . Assault . | . . . . . Garrison . | . . . . . Intercept . | . . . . . Searches Triggered . | . . . . . Construction Impeded . | . . . . . Haulers Reinforced . | . . . . . Active Scanning Responses . | . . . . . Cargo Convoy Interrupts . | . . . . . Stealth | -11 -10 -10 -10 -9 --------- Run | Yrd Mat Min Exi Min Distress Signals 2 | . 2 . . . Communications Jammed . | . . . . . Distress Signals . | . . . . . Times Spotted 51 | . 35 10 . 6 Peak Tracking Total 5 | . 5 3 . 4 Tactical Retreats 6 | . 3 2 . 1 Traps | -11 -10 -10 -10 -9 ------- Run | Yrd Mat Min Exi Min Traps Triggered 1 | . 1 . . . Indirectly . | . . . . . Trap Hack Attempts . | . . . . . Triggered . | . . . . . Disarmed 6 | . 6 . . . Reprogrammed . | . . . . . Reused . | . . . . . Traps Extracted . | . . . . . Installed . | . . . . . Triggered . | . . . . . Machines | -11 -10 -10 -10 -9 ---------- Run | Yrd Mat Min Exi Min Machines Disabled 1 | . 1 . . . Max in Single Turn 1 | . 1 . . . Machines Repaired . | . . . . . Machines Dismantled . | . . . . . Machines Sabotaged . | . . . . . Overloaded Fab Kills . | . . . . . Hacking | -11 -10 -10 -10 -9 --------- Run | Yrd Mat Min Exi Min Machines Accessed 4 | . 2 1 . 1 Terminals 3 | . 2 . . 1 Fabricators . | . . . . . Repair Stations . | . . . . . Recycling Units . | . . . . . Scanalyzers . | . . . . . Garrison Access . | . . . . . Total Hacks 10 | . 6 1 . 3 Successful 5 | . 4 1 . . Failed 5 | . 2 . . 3 Catastrophic 2 | . . . . 2 Database Lockouts . | . . . . . Manual 4 | . 3 . 1 . Terminals 9 | . 6 . . 3 Fabricators . | . . . . . Repair Stations . | . . . . . Recycling Units . | . . . . . Scanalyzers . | . . . . . Garrison Access . | . . . . . Terminal Hacks 4 | . 3 1 . . Open Door 1 | . . 1 . . Alert Level 1 | . 1 . . . Locate Traps 1 | . 1 . . . Disarm Traps 1 | . 1 . . . Fabricator Hacks . | . . . . . Repair Station Hacks . | . . . . . Recycling Unit Hacks . | . . . . . Scanalyzer . | . . . . . Garrison Access Hacks . | . . . . . Unauthorized Hacks 1 | . 1 . . . Terminals 1 | . 1 . . . Botnet 1 | . 1 . . . Fabricators . | . . . . . Repair Stations . | . . . . . Recycling Units . | . . . . . Scanalyzers . | . . . . . Garrison Access . | . . . . . Data Cores Recovered . | . . . . . Used . | . . . . . Hacking Detections 2 | . 1 . . 1 Full Trace Events . | . . . . . Feedback Events . | . . . . . Feedback Blocked . | . . . . . Robot Schematics Acquired . | . . . . . Robots Built . | . . . . . Authchips . | . . . . . Time . | . . . . . Total Robot Build Rating . | . . . . . Part Schematics Acquired . | . . . . . Parts Built . | . . . . . Authchips . | . . . . . Time . | . . . . . Total Part Build Rating . | . . . . . Parts Repaired . | . . . . . Time . | . . . . . Parts Recycled . | . . . . . Recycled Matter . | . . . . . Retrieved Matter . | . . . . . Retrieved Components . | . . . . . Parts Scanalyzed . | . . . . . Part Schematics Acquired . | . . . . . Parts Damaged . | . . . . . Bothacking | -11 -10 -10 -10 -9 ------------ Run | Yrd Mat Min Exi Min Used RIF Installer . | . . . . . Robots Hacked . | . . . . . Non-combat . | . . . . . Combat . | . . . . . Robot Hacks Applied . | . . . . . Relay Couplers Released . | . . . . . Fabnet Peak Effective % . | . . . . . Robots Rewired . | . . . . . Allies Hacked . | . . . . . Hacks Repelled . | . . . . . Allies | -11 -10 -10 -10 -9 -------- Run | Yrd Mat Min Exi Min Total Allies . | . . . . . Largest Group . | . . . . . Highest-Rated Group . | . . . . . Highest-Rated Ally . | . . . . . Total Orders . | . . . . . Ally Attacks . | . . . . . Total Damage . | . . . . . Kills . | . . . . . Allies Corrupted . | . . . . . Allies Melted . | . . . . . Intel | -11 -10 -10 -10 -9 ------- Run | Yrd Mat Min Exi Min Robot Analysis Total . | . . . . . Derelict Logs Recovered . | . . . . . Drone Launches . | . . . . . Drone Recoveries . | . . . . . Exploration | -11 -10 -10 -10 -9 ------------- Run | Yrd Mat Min Exi Min Turns Passed 3021 | 67 1614 450 602 288 Spaces Moved 1569 | 19 823 193 376 158 Core . | . . . . . Treads 1471 | . 744 193 376 158 Legs 98 | 19 79 . . . Wheels . | . . . . . Hover . | . . . . . Flight . | . . . . . Fastest Speed 120 | 120 120 160 160 160 Average Speed 157 | 120 156 160 160 160 Slowest Speed 160 | 120 160 160 160 160 Overloaded Moves . | . . . . . Propulsion Burnouts . | . . . . . Robots Hopped . | . . . . . Cave-ins Triggered . | . . . . . Exploration Rate (%) 45 | 3 85 26 70 43 Regions Visited 4 Branch Regions 3 Pre-discovered Areas . | . . . . . Known Exits Taken . | . . . . . Unknown Exits Taken 4 | 1 1 1 1 . Scrap Searched 1 | . . . . 1 Spaces Dug . | . . . . . Terrain Destroyed 1 | . . . . 1 Melee . | . . . . . Projectile 1 | . . . . 1 AOE . | . . . . . Terrain Rammed . | . . . . . Walls Destroyed . | . . . . . Machines Disabled . | . . . . . Actions | -11 -10 -10 -10 -9 --------- Run | Yrd Mat Min Exi Min Total 1872 | 52 992 262 377 189 Wait 108 | 25 49 9 . 25 Move 1565 | 18 822 192 375 158 Hop . | . . . . . Pick Up 24 | . 15 7 1 1 Fast Attach 4 | 2 2 . . . Attach 7 | . 4 3 . . Detach 1 | 1 . . . . Swap 13 | . 8 3 . 2 Drop 14 | . 7 6 1 . Fire 128 | 5 82 39 . 2 Melee . | . . . . . Ram . | . . . . . Kick 1 | 1 . . . . Crush 7 | . 3 3 . 1 Escape Stasis . | . . . . . Rewire . | . . . . . Trap . | . . . . . Miscellaneous . | . . . . . Route ------- -11/Scrapyard -10/Materials (discovered 4 exits: [*Mat x3] / *Min) -10/Mines -10/Exiles (discovered 2 exits: *Min x2) -9/Mines History --------- Turn | Location | Event 1 | -11/Scrapyard | Discovered new exit (range 3) 68 | -11/Scrapyard | Entered Materials 305 | -10/Materials | Build established: Mutant 493 | -10/Materials | Discovered new exit (range 15) 628 | -10/Materials | Lost 3 parts (1p1n1w) 1282 | -10/Materials | Discovered new exit (range 5) 1329 | -10/Materials | Discovered new exit (range 15) 1414 | -10/Materials | Discovered new exit (range 6) 1682 | -10/Materials | Entered Mines 1755 | -10/Mines | Core integrity fell below 50% 1825 | -10/Mines | Lost 3 parts (1p2w) 1907 | -10/Mines | Met a Derelict shopkeep closing up shop 2055 | -10/Mines | Core integrity fell below 20% 2112 | -10/Mines | Deemed a non-threat by the Exiles lab entrance 2113 | -10/Mines | Discovered new exit (range 5) 2132 | -10/Mines | Entered Exiles 2153 | -10/Exiles | Discovered new exit (range 15) 2176 | -10/Exiles | Met 8R-AWN 2198 | -10/Exiles | Met EX-HEX 2257 | -10/Exiles | Met EX-DEC 2307 | -10/Exiles | Met EX-BIN 2700 | -10/Exiles | Discovered new exit (range 14) 2734 | -10/Exiles | Entered Mines 2864 | -9/Mines | A weapon hastily lodged in a ceiling crevice suddenly fell to the ground 3022 | -9/Mines | Destroyed by S-10 Pest with Light Assault Rifle Last Messages --------------- 02631_ Acquired Hcp. Storage Unit. 02700_ EXIT=FOUND LOCATION=UNKNOWN GOAL=ESCAPE 02735_ K-01 Serf collects debris. 02737_ K-01 Serf cleans the Seismic Survey Station. 02738_ K-01 Serf collects debris. 02744_ Connecting with Terminal... 02744_ Current location identified: Mines 02752_ K-01 Serf collects debris. 02760_ Crushed K-01 Serf. 02760_ K-01 Serf destroyed. 02762_ K-01 Serf collects debris. 02864_ A Battle Cannon has been hastily shoved under some rubble with a note attached: "To battle!" 02867_ Acquired Battle Cannon. 02927_ Searching scrap... 02927_ Found Heat Sink. 02927_ Found 57 Matter. 02928_ Acquired 20 matter. Map ----- +----------------------------------------------------+ | | | | | | | | | | | ?????????????????????????????????????????????????? | | ?????????????????????????????????????????????????? | | ?????????????????????????????????????????######### | | ???????????????????????????????????####### | | ???????????????????????????????????# | | ???????????????????????????????????# #### | | ????????????????????? ??????????# #??## | | ????????????????????? ??????????# #???## | | ?????????????????????? ??????????# #????### | | ?????????????????????? ??????????# #??????## | | ??????????????????????# ??????????# #???????#### | | ??????????????????????# ???????#### #??????????## | | ??????????????????????# ???????# #???????????# | | ????????????######????# ###????# ###???????????? | | ??????????### ##??? #????# #?????????????? | | ?????????## ##??? #??### ##????????????? | | ?????##### #???# #### ######????? ? | | ????$ #???# ## ##??? | | ????? #???# t #???# # | | ???????# #???# ## ##??## # | | ????????# ##?##@ #### ##%#???? # | | ?????????# ### ###??######!## #?# # | | ??????????# s ##?????????# #?# # | | ??????????###### s u##??????????######?# # | | ???????????????##### ss #?????????????????## | | ???????????????????####; #???????????????### | | ??????????????????????### #?????????????## | | ????????????????????????# #?????????????# | | ????????????????????????# #?????????????# | | ???????????????????????? ##?????????????# | | ???????????????????????? ##???#??????????# | | ???????????????????????? #???# ?????????# | | ???????????????????????? ???# ????????# | | ???????????????????????## ???# ???????# #### | | ????????????????????????# ????# ??????# ##??# | | ????????????????????????? ?????# ????## #???? | | ????????????????????????? ?????# #### #???? | | ????????????????????????? ?????# #???? | | ????????????????????????????????# ##???? | | ????????????????????????????????# ##????? | | ????????????????????????????????# ### #?????? | | ????????????????????????????????## #??# #?????? | | ?????????????????????????????????## #???# ####### | | ??????????????????????????????????###????# | | ?????????????????????????????????????????######## | +----------------------------------------------------+ Best States ------------- Heat Dissipation 39 Energy Generation 14 Energy Capacity 250 Matter Stores 300 Matter Capacity 300 Sight Range 16 Terrain Scan Density 10 Armor Coverage 150 Propulsion Shielding 33 Evasion (%) 55 Recoil Reduction 2 Item Schematics ----------------- None Robot Schematics ------------------ None Fabricated ------------ Nothing Alien Tech Used ----------------- None Achievements -------------- None Challenges ------------ None Game ------ Seed BladeSubatomicScythe Manual? 0 Play Time 00:16:36 Cumulative 162.8 hours Start 2024.08.31 @ 12:03:42 End 2024.08.31 @ 12:19:29 Sessions 1 Manual Loads 0 Difficulty Rogue Special Mode None Game No. 84 Rogue 82 Adventurer 0 Explorer 2 Win Type - Total 10 Types 10/0/0/0/0/0/0/0/0 Lore% 58 Gallery% 70 Achievement% 57 Wizard Run 0 Options --------- Layout 0 ASCII 0 Keyboard 1 Movement Numpad Keybinds 0 Fullscreen 1 Font 24/Smallcaps Map View 76x50 Zoom Use 0% Tactical HUD 1 Map Filters NONE Filters NONE Steam 1 RUN: 966af61b-d09e-4f63-885d-9ed967e2b5f5